{"text_format":"3","workbook":"xlsx","n_sheets":4,"sheets":["نموذج الأسعار","بيانات المخطط","شكل تصنيف تفصيلي للتكلفة","ملخص الأسعار"],"not_rendered":{"charts":1,"images":2,"defined_names":11},"read":"whole","date_system":"1900"}

{"sheet":"نموذج الأسعار","index":0,"n_rows":21,"n_cols":6,"rows_kept":21,"merged":[[0,1,0,4],[1,1,1,2],[7,1,8,1],[7,2,8,2],[10,1,10,5],[12,1,12,5],[14,1,14,5],[15,1,15,2],[15,4,15,5],[16,1,16,2],[16,4,16,5],[18,1,18,5],[19,1,19,2],[19,4,19,5],[20,1,20,2],[20,4,20,5]]}
[null,"نموذج مناقصة الإنشاء"]
[null,"معلومات المالك",null,null,"معلومات المقاول"]
[null,"الاسم","أدخل اسم المالك في هذه الخلية",null,"الشركة","أدخل اسم شركة المقاول في هذه الخلية"]
[null,"العنوان","أدخل عنوان المالك في هذه الخلية",null,"الاسم","أدخل اسم المقاول في هذه الخلية"]
[null,"المدينة، الرمز البريدي للمنطقة","أدخل المدينة والولاية والرمز البريدي للمالك في هذه الخلية",null,"العنوان","أدخل عنوان المقاول في هذه الخلية"]
[null,"الهاتف","أدخل رقم هاتف المالك في هذه الخلية",null,"المدينة، الرمز البريدي للمنطقة","أدخل مدينة المقاول والولاية والرمز البريدي في هذه الخلية"]
[null,"البريد الإلكتروني","أدخل عنوان البريد الإلكتروني للمالك في هذه الخلية",null,"الهاتف","أدخل رقم هاتف المقاول في هذه الخلية"]
[null,"اسم المشروع","أدخل \"اسم المشروع\" في هذه الخلية",null,"البريد الإلكتروني","أدخل عنوان البريد الإلكتروني للمقاول في هذه الخلية "]
[{"$nulls":4},"تاريخ الإكمال","أدخل \"تاريخ الإكمال\" في هذه الخلية"]
[null,"نطاق العمل"]
[null,"نطاق عمل المشروع يذهب هنا. اكتب جميع المواصفات التي تريدها. \n\nنموذج النص: سيكون هذا مشروعاً وهمياً لبناء مجموعة كبيرة من السلالم. سنستخدم فقط الخشب المنشور 2x4 و2x8، بالإضافة إلى أقواس الرافعة، لبناء الإطار. سيتم قطع السلالم من مادة 2x4. سيتم استخدام ما لا يقل عن 2 \"من البراغي.  أي مسامير لن تقل عن 10 بنسات. يجب ألا يقل الوزن التصميمي عن 500 رطل لكل درجة. ستكون الخطوات متساوية مع خطوات المنزل. سيتم تثبيت لوحة الجري في المنزل. سيهتم المقاول بالتنظيف."]
[null,"غير مضمّن."]
[null,"تفاصيل المشروع التي لم يتم تضمينها تذهب هنا. اكتب كل ما لم يتم تضمينه في هذا العطاء. \n\nنموذج النص: لن يتم تثبيت أي سكك حديدية. الأرض المراد تجهيزها من قبل المالك. يرسم السلالم من قبل المالك."]
[null,"اقتراح الشركة"]
[null,"يذهب عرض الشركة هنا. اكتب نظرة عامة على الاقتراح بما في ذلك من يقترح العمل وتاريخ الانتهاء المتوقع ومقدار العرض.\n\nنموذج النص: نحن، اسم الشركة، نقترح نطاق العمل أعلاه، ليتم استكماله بحلول تاريخ الانتهاء لمبلغ إجمالي المبلغ."]
[]
[null,"مقدم من (ممثل الشركة)",null,null,"التاريخ"]
[null,"قبول المالك"]
[null,"قبول المالك يظهر هنا. اكتب اسم المالك في بيان تأكيد يتضمن تاريخ الإكمال والمبلغ الإجمالي المذكور في عرض الشركة. \n\nنموذج النص: أنا، اسم المالك، أقبل نطاق العمل أعلاه، المقترح استكماله بحلول تاريخ الإكمال لمبلغ إجمالي المبلغ."]
[]
[null,"مقدم من (مالك المنزل أو الممثل المفوض)",null,null,"التاريخ"]

{"sheet":"بيانات المخطط","index":1,"n_rows":7,"n_cols":3,"rows_kept":7,"hidden":true}
[]
[null,null,"الإجمالي"]
[null,{"$f":"INDEX(BidItems[#Data],MATCH(1,BidItems[التكاليف المصنفة],0),2)","v":"أجور العمالة"},{"$f":"INDEX(BidItems[#Data],MATCH(1,BidItems[التكاليف المصنفة],0),4)","v":200}]
[null,{"$f":"INDEX(BidItems[#Data],MATCH(2,BidItems[التكاليف المصنفة],0),2)","v":"2x4x10 خشب منشور"},{"$f":"INDEX(BidItems[#Data],MATCH(2,BidItems[التكاليف المصنفة],0),4)","v":99.39999999999999}]
[null,{"$f":"INDEX(BidItems[#Data],MATCH(3,BidItems[التكاليف المصنفة],0),2)","v":"رافعة بين قوسين"},{"$f":"INDEX(BidItems[#Data],MATCH(3,BidItems[التكاليف المصنفة],0),4)","v":74.7}]
[null,{"$f":"INDEX(BidItems[#Data],MATCH(4,BidItems[التكاليف المصنفة],0),2)","v":"2x8x10 خشب منشور"},{"$f":"INDEX(BidItems[#Data],MATCH(4,BidItems[التكاليف المصنفة],0),4)","v":33.75}]
[null,{"$f":"INDEX(BidItems[#Data],MATCH(5,BidItems[التكاليف المصنفة],0),2)","v":"زوج من القفازات، جلد"},{"$f":"INDEX(BidItems[#Data],MATCH(5,BidItems[التكاليف المصنفة],0),4)","v":15.5}]

{"sheet":"شكل تصنيف تفصيلي للتكلفة","index":2,"n_rows":14,"n_cols":6,"rows_kept":14,"merged":[[0,1,0,4],[1,1,1,4]]}
[null,"شكل تصنيف تفصيلي للتكلفة",{"$nulls":3}," "]
[null,"قائمة بالمواد والتكلفة"]
[null,"الكمية.","الوصف","التكلفة","الإجمالي","التكاليف المصنفة"]
[null,5,"2x8x10 خشب منشور",{"v":6.75,"d":"ر.س.‏ 6.75"},{"$f":"IFERROR(BidItems[[#This Row],[التكلفة]]*BidItems[[#This Row],[الكمية.]], \"\")","v":{"v":33.75,"d":"ر.س.‏ 33.75"}},{"$f":"_xlfn.RANK.EQ(BidItems[[#This Row],[الإجمالي]],BidItems[الإجمالي])","v":4}]
[null,20,"2x4x10 خشب منشور",{"v":4.97,"d":"ر.س.‏ 4.97"},{"$f":"IFERROR(BidItems[[#This Row],[التكلفة]]*BidItems[[#This Row],[الكمية.]], \"\")","v":{"v":99.39999999999999,"d":"ر.س.‏ 99.40"}},{"$f":"_xlfn.RANK.EQ(BidItems[[#This Row],[الإجمالي]],BidItems[الإجمالي])","v":2}]
[null,30,"رافعة بين قوسين",{"v":2.49,"d":"ر.س.‏ 2.49"},{"$f":"IFERROR(BidItems[[#This Row],[التكلفة]]*BidItems[[#This Row],[الكمية.]], \"\")","v":{"v":74.7,"d":"ر.س.‏ 74.70"}},{"$f":"_xlfn.RANK.EQ(BidItems[[#This Row],[الإجمالي]],BidItems[الإجمالي])","v":3}]
[null,2,"صندوق من البراغي، يحتوي على 2",{"v":6.67,"d":"ر.س.‏ 6.67"},{"$f":"IFERROR(BidItems[[#This Row],[التكلفة]]*BidItems[[#This Row],[الكمية.]], \"\")","v":{"v":13.34,"d":"ر.س.‏ 13.34"}},{"$f":"_xlfn.RANK.EQ(BidItems[[#This Row],[الإجمالي]],BidItems[الإجمالي])","v":6}]
[null,2,"صندوق من المسامير، يحتوي على 10",{"v":3.25,"d":"ر.س.‏ 3.25"},{"$f":"IFERROR(BidItems[[#This Row],[التكلفة]]*BidItems[[#This Row],[الكمية.]], \"\")","v":{"v":6.5,"d":"ر.س.‏ 6.50"}},{"$f":"_xlfn.RANK.EQ(BidItems[[#This Row],[الإجمالي]],BidItems[الإجمالي])","v":7}]
[null,2,"زوج من القفازات، جلد",{"v":7.75,"d":"ر.س.‏ 7.75"},{"$f":"IFERROR(BidItems[[#This Row],[التكلفة]]*BidItems[[#This Row],[الكمية.]], \"\")","v":{"v":15.5,"d":"ر.س.‏ 15.50"}},{"$f":"_xlfn.RANK.EQ(BidItems[[#This Row],[الإجمالي]],BidItems[الإجمالي])","v":5}]
[null,2,"أجور العمالة",{"v":100,"d":"ر.س.‏ 100.00"},{"$f":"IFERROR(BidItems[[#This Row],[التكلفة]]*BidItems[[#This Row],[الكمية.]], \"\")","v":{"v":200,"d":"ر.س.‏ 200.00"}},{"$f":"_xlfn.RANK.EQ(BidItems[[#This Row],[الإجمالي]],BidItems[الإجمالي])","v":1}]
[4,null,null,"الإجمالي الفرعي",{"$f":"SUBTOTAL(109,BidItems[الإجمالي])","v":{"v":443.18999999999994,"d":"ر.س.‏ 443.19"}}]
[5,null,null,"معدل الضريبة",{"v":0.075,"d":"7.50%"}]
[{"$nulls":3},"الضريبة",{"$f":"IFERROR(نسبة_الضريبة*BidItems[[#Totals],[الإجمالي]], \"\")","v":{"v":33.23924999999999,"d":"ر.س.‏ 33.24"}}]
[{"$nulls":3},"الإجمالي الكلي",{"$f":"IFERROR(الضريبة+BidItems[[#Totals],[الإجمالي]], \"\")","v":{"v":476.4292499999999,"d":"ر.س.‏ 476.43"}}]

{"sheet":"ملخص الأسعار","index":3,"n_rows":3,"n_cols":4,"rows_kept":3}
[null,"ملخص الأسعار"]
[null,"شكل تصنيف تفصيلي بالمواد والتكلفة",null,"ملاحظات"]
[null,"مخطط دائري يعرض أعلى 5 تكاليف لكل مادة. تستند البيانات إلى جدول الأسعار في ورقة عمل تفاصيل التكلفة",null,"أدخل الملاحظات في هذه الخلية."]